[Event "Titled Tuesday Blitz April 18 Late 2023"]
[White "Oganian, Miran"]
[Black "KorolDimitriy75"]
[WhiteFideId "4122488"]
[WhiteElo "2323"]
[BlackElo "2402"]
[Result "1-0"]
[Round "02"]
[TimeControl "180+2"]
[Date "2023.04.18"]
[WhiteClock "0:00:36"]
[BlackClock "0:00:01"]

1. e4 {[%clk 0:03:00]}  c5 {[%clk 0:02:58]} 2. Nf3 {[%clk 0:03:00]}  d6 {[%clk 0:02:58]} 3. Bb5+ {[%clk 0:03:00]}  Nd7 {[%clk 0:02:57]} 4. d4 {[%clk 0:02:59]}  Nf6 {[%clk 0:02:57]} 5. e5 {[%clk 0:02:58]}  cxd4 {[%clk 0:02:56]} 6. Qxd4 {[%clk 0:02:54]}  dxe5 {[%clk 0:02:56]} 7. Nxe5 {[%clk 0:02:55]}  g6 {[%clk 0:02:55]} 8. O-O {[%clk 0:02:54]}  Bg7 {[%clk 0:02:55]} 9. Nxd7 {[%clk 0:02:54]}  Bxd7 {[%clk 0:02:54]} 10. Bxd7+ {[%clk 0:02:54]}  Qxd7 {[%clk 0:02:54]} 11. Qh4 {[%clk 0:02:50]}  O-O {[%clk 0:02:49]} 12. Nc3 {[%clk 0:02:50]}  Rfd8 {[%clk 0:02:40]} 13. Bh6 {[%clk 0:02:47]}  Qf5 {[%clk 0:02:32]} 14. Bxg7 {[%clk 0:02:44]}  Kxg7 {[%clk 0:02:33]} 15. Rac1 {[%clk 0:02:37]}  Rd2 {[%clk 0:02:29]} 16. Qb4 {[%clk 0:02:33]}  b6 {[%clk 0:02:00]} 17. Qxe7 {[%clk 0:02:25]}  Rxc2 {[%clk 0:01:56]} 18. Rxc2 {[%clk 0:02:17]}  Qxc2 {[%clk 0:01:57]} 19. Qe5 {[%clk 0:02:16]}  Re8 {[%clk 0:01:53]} 20. Qb5 {[%clk 0:02:13]}  Rd8 {[%clk 0:01:28]} 21. h3 {[%clk 0:01:41]}  Rd2 {[%clk 0:01:21]} 22. g4 {[%clk 0:01:28]}  h6 {[%clk 0:01:03]} 23. Na4 {[%clk 0:01:15]}  Rd5 {[%clk 0:00:50]} 24. Qb4 {[%clk 0:01:12]}  a5 {[%clk 0:00:39]} 25. Qb3 {[%clk 0:01:01]}  Qxb3 {[%clk 0:00:38]} 26. axb3 {[%clk 0:01:02]}  Rd3 {[%clk 0:00:38]} 27. Nxb6 {[%clk 0:00:48]}  Rxb3 {[%clk 0:00:37]} 28. Nc4 {[%clk 0:00:48]}  Rb4 {[%clk 0:00:22]} 29. Rc1 {[%clk 0:00:48]}  a4 {[%clk 0:00:19]} 30. Rc2 {[%clk 0:00:48]}  Nd5 {[%clk 0:00:17]} 31. Ne5 {[%clk 0:00:46]}  Nf4 {[%clk 0:00:15]} 32. Rc7 {[%clk 0:00:46]}  Nxh3+ {[%clk 0:00:13]} 33. Kh2 {[%clk 0:00:46]}  Ng5 {[%clk 0:00:14]} 34. Kg3 {[%clk 0:00:45]}  Rb3+ {[%clk 0:00:13]} 35. f3 {[%clk 0:00:45]}  Rxb2 {[%clk 0:00:11]} 36. f4 {[%clk 0:00:43]}  Rb3+ {[%clk 0:00:10]} 37. Kg2 {[%clk 0:00:42]}  Ne4 {[%clk 0:00:09]} 38. Rxf7+ {[%clk 0:00:42]}  Kg8 {[%clk 0:00:10]} 39. Ra7 {[%clk 0:00:42]}  a3 {[%clk 0:00:09]} 40. Nxg6 {[%clk 0:00:43]}  Rg3+ {[%clk 0:00:08]} 41. Kh2 {[%clk 0:00:43]}  Rxg4 {[%clk 0:00:08]} 42. f5 {[%clk 0:00:43]}  Rg5 {[%clk 0:00:06]} 43. Kh3 {[%clk 0:00:44]}  Nd6 {[%clk 0:00:04]} 44. Ne7+ {[%clk 0:00:41]}  Kf8 {[%clk 0:00:04]} 45. Ng6+ {[%clk 0:00:41]}  Kg8 {[%clk 0:00:04]} 46. Ne7+ {[%clk 0:00:38]}  Kf8 {[%clk 0:00:04]} 47. f6 {[%clk 0:00:38]}  Nf5 {[%clk 0:00:03]} 48. Nc6 {[%clk 0:00:38]}  Rg6 {[%clk 0:00:02]} 49. Ra8+ {[%clk 0:00:36]}  Kf7 {[%clk 0:00:02]} 50. Ne5+ {[%clk 0:00:36]}  Kxf6 {[%clk 0:00:02]} 51. Nxg6 {[%clk 0:00:37]}  Kxg6 {[%clk 0:00:02]} 52. Rxa3 {[%clk 0:00:36]}  Kg5 {[%clk 0:00:03]} 53. Ra5 {[%clk 0:00:36]}  h5 {[%clk 0:00:03]} 54. Kg2 {[%clk 0:00:36]}  h4 {[%clk 0:00:04]} 55. Kf3 {[%clk 0:00:36]}  Kg6 {[%clk 0:00:02]} 56. Kg4 {[%clk 0:00:36]}  Ne3+ {[%clk 0:00:01]} 57. Kf4 {[%clk 0:00:36]} 1-0


[Site "https://www.chess.com"]

[Event "Titled Tuesday Blitz April 18 Late 2023"]
[White "Liu, Casper"]
[Black "Thomforde-Toates, Noah"]
[WhiteFideId "1454153"]
[BlackFideId "30951992"]
[WhiteElo "2221"]
[BlackElo "2743"]
[Result "0-1"]
[Round "02"]
[TimeControl "180+2"]
[Date "2023.04.18"]
[WhiteClock "0:00:06"]
[BlackClock "0:00:49"]

1. e4 {[%clk 0:03:00]}  d6 {[%clk 0:03:00]} 2. Nc3 {[%clk 0:02:58]}  Nf6 {[%clk 0:03:00]} 3. d4 {[%clk 0:02:59]}  e5 {[%clk 0:03:00]} 4. Be3 {[%clk 0:02:56]}  Nbd7 {[%clk 0:02:59]} 5. f3 {[%clk 0:02:56]}  c6 {[%clk 0:03:00]} 6. Qd2 {[%clk 0:02:56]}  Qc7 {[%clk 0:03:00]} 7. O-O-O {[%clk 0:02:57]}  Be7 {[%clk 0:03:00]} 8. h4 {[%clk 0:02:56]}  h6 {[%clk 0:02:55]} 9. g4 {[%clk 0:02:55]}  b5 {[%clk 0:02:55]} 10. Kb1 {[%clk 0:02:54]}  Rb8 {[%clk 0:02:48]} 11. Nh3 {[%clk 0:02:52]}  Nb6 {[%clk 0:02:45]} 12. dxe5 {[%clk 0:02:16]}  dxe5 {[%clk 0:02:43]} 13. Qg2 {[%clk 0:02:02]}  Be6 {[%clk 0:02:40]} 14. g5 {[%clk 0:02:01]}  hxg5 {[%clk 0:02:34]} 15. Nxg5 {[%clk 0:01:45]}  Bc4 {[%clk 0:02:33]} 16. Nh3 {[%clk 0:00:59]}  Bxf1 {[%clk 0:02:28]} 17. Rhxf1 {[%clk 0:00:57]}  Nc4 {[%clk 0:02:28]} 18. Bc1 {[%clk 0:00:56]}  b4 {[%clk 0:02:24]} 19. Ne2 {[%clk 0:00:55]}  Na3+ {[%clk 0:02:12]} 20. bxa3 {[%clk 0:00:47]}  bxa3+ {[%clk 0:02:11]} 21. Ka1 {[%clk 0:00:48]}  Qb6 {[%clk 0:02:11]} 22. Nc3 {[%clk 0:00:46]}  Bb4 {[%clk 0:01:47]} 23. Na4 {[%clk 0:00:13]}  Qa5 {[%clk 0:01:44]} 24. Bd2 {[%clk 0:00:09]}  Qxa4 {[%clk 0:01:26]} 25. Rb1 {[%clk 0:00:07]}  O-O {[%clk 0:01:10]} 26. Rg1 {[%clk 0:00:03]}  g6 {[%clk 0:01:09]} 27. h5 {[%clk 0:00:03]}  Qxc2 {[%clk 0:01:08]} 28. Bxb4 {[%clk 0:00:02]}  Qc4 {[%clk 0:01:02]} 29. Qd2 {[%clk 0:00:02]}  c5 {[%clk 0:00:55]} 30. Qc3 {[%clk 0:00:02]}  Rxb4 {[%clk 0:00:54]} 31. Qxc4 {[%clk 0:00:02]}  Rxc4 {[%clk 0:00:54]} 32. hxg6 {[%clk 0:00:03]}  fxg6 {[%clk 0:00:54]} 33. Rxg6+ {[%clk 0:00:03]}  Kf7 {[%clk 0:00:55]} 34. Rg2 {[%clk 0:00:03]}  Rd8 {[%clk 0:00:51]} 35. Rb7+ {[%clk 0:00:04]}  Rd7 {[%clk 0:00:51]} 36. Ng5+ {[%clk 0:00:04]}  Ke7 {[%clk 0:00:51]} 37. Rxd7+ {[%clk 0:00:05]}  Nxd7 {[%clk 0:00:52]} 38. Kb1 {[%clk 0:00:06]}  Rb4+ {[%clk 0:00:50]} 39. Kc2 {[%clk 0:00:06]}  Rb2+ {[%clk 0:00:49]} 0-1


[Site "https://www.chess.com"]

[Event "Titled Tuesday Blitz April 18 Late 2023"]
[White "Prieto Aranguren, Alain"]
[Black "Djordjevic, Vuk"]
[WhiteFideId "2268906"]
[BlackFideId "902098"]
[WhiteElo "2209"]
[BlackElo "2452"]
[Result "0-1"]
[Round "02"]
[TimeControl "180+2"]
[Date "2023.04.18"]
[WhiteClock "0:00:15"]
[BlackClock "0:00:17"]

1. d4 {[%clk 0:03:00]}  Nf6 {[%clk 0:03:00]} 2. c4 {[%clk 0:03:00]}  e6 {[%clk 0:03:00]} 3. Nc3 {[%clk 0:03:00]}  Bb4 {[%clk 0:03:00]} 4. e3 {[%clk 0:03:00]}  O-O {[%clk 0:03:00]} 5. Bd3 {[%clk 0:02:59]}  d5 {[%clk 0:02:59]} 6. Nf3 {[%clk 0:02:59]}  c5 {[%clk 0:02:59]} 7. cxd5 {[%clk 0:02:58]}  exd5 {[%clk 0:02:56]} 8. dxc5 {[%clk 0:02:56]}  Bg4 {[%clk 0:02:55]} 9. Be2 {[%clk 0:02:54]}  Nbd7 {[%clk 0:02:46]} 10. O-O {[%clk 0:02:53]}  Nxc5 {[%clk 0:02:40]} 11. Nd4 {[%clk 0:02:50]}  Be6 {[%clk 0:02:22]} 12. Bf3 {[%clk 0:02:46]}  Bxc3 {[%clk 0:02:17]} 13. bxc3 {[%clk 0:02:46]}  Nce4 {[%clk 0:02:17]} 14. Ba3 {[%clk 0:02:37]}  Re8 {[%clk 0:02:15]} 15. Nxe6 {[%clk 0:02:29]}  fxe6 {[%clk 0:02:09]} 16. Rc1 {[%clk 0:02:21]}  Qa5 {[%clk 0:01:56]} 17. Bb4 {[%clk 0:01:51]}  Qxa2 {[%clk 0:01:55]} 18. Be2 {[%clk 0:01:46]}  a5 {[%clk 0:01:39]} 19. Ra1 {[%clk 0:01:33]}  Qxa1 {[%clk 0:01:39]} 20. Qxa1 {[%clk 0:01:32]}  axb4 {[%clk 0:01:40]} 21. Qc1 {[%clk 0:01:22]}  bxc3 {[%clk 0:01:35]} 22. f3 {[%clk 0:01:20]}  Nd2 {[%clk 0:01:34]} 23. Rd1 {[%clk 0:01:14]}  Rec8 {[%clk 0:01:32]} 24. Bd3 {[%clk 0:01:14]}  Rc6 {[%clk 0:01:19]} 25. Qc2 {[%clk 0:01:10]}  e5 {[%clk 0:01:03]} 26. Bb5 {[%clk 0:00:48]}  Rcc8 {[%clk 0:01:00]} 27. Qd3 {[%clk 0:00:46]}  e4 {[%clk 0:00:39]} 28. fxe4 {[%clk 0:00:46]}  dxe4 {[%clk 0:00:40]} 29. Qc2 {[%clk 0:00:45]}  Rc5 {[%clk 0:00:37]} 30. Rxd2 {[%clk 0:00:39]}  cxd2 {[%clk 0:00:37]} 31. Bc4+ {[%clk 0:00:21]}  Kh8 {[%clk 0:00:33]} 32. Qxd2 {[%clk 0:00:20]}  Rxc4 {[%clk 0:00:31]} 33. h3 {[%clk 0:00:21]}  b5 {[%clk 0:00:28]} 34. Qb2 {[%clk 0:00:19]}  Rb8 {[%clk 0:00:24]} 35. h4 {[%clk 0:00:19]}  b4 {[%clk 0:00:23]} 36. h5 {[%clk 0:00:19]}  h6 {[%clk 0:00:21]} 37. Qe5 {[%clk 0:00:18]}  Rcc8 {[%clk 0:00:19]} 38. g4 {[%clk 0:00:17]}  Nxg4 {[%clk 0:00:18]} 39. Qe7 {[%clk 0:00:17]}  b3 {[%clk 0:00:16]} 40. Qxe4 {[%clk 0:00:15]}  b2 {[%clk 0:00:17]} 0-1


[Site "https://www.chess.com"]

[Event "Titled Tuesday Blitz April 18 Late 2023"]
[White "Manukyan, Sargis A."]
[Black "Garmash, Aliona"]
[WhiteFideId "13303970"]
[BlackFideId "34127620"]
[WhiteElo "2187"]
[BlackElo "1959"]
[Result "1-0"]
[Round "02"]
[TimeControl "180+2"]
[Date "2023.04.18"]
[WhiteClock "0:00:44"]
[BlackClock "0:00:02"]

1. d4 {[%clk 0:03:00]}  d5 {[%clk 0:02:59]} 2. c4 {[%clk 0:02:58]}  c6 {[%clk 0:02:59]} 3. Nc3 {[%clk 0:02:58]}  dxc4 {[%clk 0:02:59]} 4. a4 {[%clk 0:02:57]}  e5 {[%clk 0:02:59]} 5. e3 {[%clk 0:02:56]}  exd4 {[%clk 0:02:58]} 6. exd4 {[%clk 0:02:57]}  Be6 {[%clk 0:02:57]} 7. Nf3 {[%clk 0:02:56]}  Na6 {[%clk 0:02:57]} 8. Ne5 {[%clk 0:02:54]}  Nb4 {[%clk 0:02:38]} 9. Bxc4 {[%clk 0:02:53]}  Qxd4 {[%clk 0:02:14]} 10. Qxd4 {[%clk 0:02:34]}  Nc2+ {[%clk 0:02:14]} 11. Kf1 {[%clk 0:02:34]}  Nxd4 {[%clk 0:02:14]} 12. Bxe6 {[%clk 0:02:34]}  Nxe6 {[%clk 0:02:13]} 13. Be3 {[%clk 0:02:31]}  Bd6 {[%clk 0:02:10]} 14. Nc4 {[%clk 0:02:31]}  Bc7 {[%clk 0:02:10]} 15. Ke2 {[%clk 0:02:30]}  Nf6 {[%clk 0:02:08]} 16. Rad1 {[%clk 0:02:30]}  O-O {[%clk 0:02:08]} 17. h3 {[%clk 0:02:25]}  a6 {[%clk 0:01:58]} 18. a5 {[%clk 0:02:21]}  Rad8 {[%clk 0:01:53]} 19. g4 {[%clk 0:02:16]}  h6 {[%clk 0:01:39]} 20. b4 {[%clk 0:02:03]}  Nd5 {[%clk 0:01:32]} 21. Nxd5 {[%clk 0:02:02]}  cxd5 {[%clk 0:01:32]} 22. Nb2 {[%clk 0:01:46]}  d4 {[%clk 0:01:28]} 23. Bd2 {[%clk 0:01:46]}  Rd5 {[%clk 0:01:27]} 24. Nd3 {[%clk 0:01:46]}  Rfd8 {[%clk 0:01:23]} 25. f4 {[%clk 0:01:46]}  Bd6 {[%clk 0:01:01]} 26. Kf3 {[%clk 0:01:44]}  Nc7 {[%clk 0:00:54]} 27. Rc1 {[%clk 0:01:40]}  Rb5 {[%clk 0:00:50]} 28. Rc4 {[%clk 0:01:36]}  Rd5 {[%clk 0:00:31]} 29. Re1 {[%clk 0:01:34]}  Nb5 {[%clk 0:00:29]} 30. Re4 {[%clk 0:01:31]}  Bf8 {[%clk 0:00:17]} 31. Re5 {[%clk 0:01:26]}  Rxe5 {[%clk 0:00:15]} 32. fxe5 {[%clk 0:01:27]}  f6 {[%clk 0:00:13]} 33. exf6 {[%clk 0:01:19]}  gxf6 {[%clk 0:00:13]} 34. Rc1 {[%clk 0:01:12]}  Kf7 {[%clk 0:00:13]} 35. h4 {[%clk 0:01:05]}  Rd5 {[%clk 0:00:13]} 36. h5 {[%clk 0:01:05]}  f5 {[%clk 0:00:13]} 37. Nf4 {[%clk 0:01:01]}  fxg4+ {[%clk 0:00:12]} 38. Kxg4 {[%clk 0:01:01]}  Rg5+ {[%clk 0:00:12]} 39. Kf3 {[%clk 0:01:01]}  Re5 {[%clk 0:00:09]} 40. Rf1 {[%clk 0:01:00]}  Kg8 {[%clk 0:00:07]} 41. Rg1+ {[%clk 0:00:59]}  Kf7 {[%clk 0:00:07]} 42. Rf1 {[%clk 0:00:59]}  Kg8 {[%clk 0:00:07]} 43. Rg1+ {[%clk 0:00:58]}  Kf7 {[%clk 0:00:07]} 44. Rg6 {[%clk 0:00:57]}  Nd6 {[%clk 0:00:05]} 45. Rg4 {[%clk 0:00:47]}  Nc4 {[%clk 0:00:05]} 46. Bc1 {[%clk 0:00:43]}  Re1 {[%clk 0:00:03]} 47. Nd3 {[%clk 0:00:44]}  Rd1 {[%clk 0:00:03]} 48. Ke2 {[%clk 0:00:43]}  Rh1 {[%clk 0:00:02]} 49. Rxd4 {[%clk 0:00:44]} 1-0


[Site "https://www.chess.com"]

[Event "Titled Tuesday Blitz April 18 Late 2023"]
[White "Prohaszka, Peter"]
[Black "Cigan, Jason"]
[WhiteFideId "726265"]
[BlackFideId "2064022"]
[WhiteElo "2626"]
[BlackElo "2000"]
[Result "1-0"]
[Round "02"]
[TimeControl "180+2"]
[Date "2023.04.18"]
[WhiteClock "0:01:14"]
[BlackClock "0:01:13"]

1. d4 {[%clk 0:03:00]}  Nf6 {[%clk 0:02:59]} 2. c3 {[%clk 0:03:01]}  g6 {[%clk 0:02:59]} 3. Bg5 {[%clk 0:02:59]}  Bg7 {[%clk 0:02:59]} 4. Nd2 {[%clk 0:03:00]}  d6 {[%clk 0:02:56]} 5. Ngf3 {[%clk 0:03:00]}  O-O {[%clk 0:02:56]} 6. e4 {[%clk 0:03:00]}  c5 {[%clk 0:02:56]} 7. d5 {[%clk 0:02:53]}  h6 {[%clk 0:02:53]} 8. Bf4 {[%clk 0:02:53]}  e6 {[%clk 0:02:43]} 9. dxe6 {[%clk 0:02:35]}  fxe6 {[%clk 0:02:44]} 10. e5 {[%clk 0:02:31]}  Nh5 {[%clk 0:02:39]} 11. Be3 {[%clk 0:02:29]}  Nc6 {[%clk 0:02:18]} 12. exd6 {[%clk 0:02:25]}  Qxd6 {[%clk 0:02:19]} 13. Ne4 {[%clk 0:02:21]}  Qxd1+ {[%clk 0:02:15]} 14. Rxd1 {[%clk 0:02:22]}  b6 {[%clk 0:02:15]} 15. Bb5 {[%clk 0:02:16]}  Ne5 {[%clk 0:02:08]} 16. Nxe5 {[%clk 0:02:11]}  Bxe5 {[%clk 0:02:08]} 17. Bxh6 {[%clk 0:02:10]}  Bg7 {[%clk 0:01:59]} 18. Bxg7 {[%clk 0:02:02]}  Kxg7 {[%clk 0:01:56]} 19. O-O {[%clk 0:01:53]}  Nf4 {[%clk 0:01:56]} 20. Rfe1 {[%clk 0:01:37]}  Rb8 {[%clk 0:01:42]} 21. Nd6 {[%clk 0:01:34]}  Bb7 {[%clk 0:01:31]} 22. Nxb7 {[%clk 0:01:27]}  Rxb7 {[%clk 0:01:32]} 23. Bf1 {[%clk 0:01:22]}  Rbf7 {[%clk 0:01:30]} 24. Rd2 {[%clk 0:01:18]}  Rf5 {[%clk 0:01:16]} 25. g3 {[%clk 0:01:16]}  Nd5 {[%clk 0:01:13]} 26. Rxe6 {[%clk 0:01:14]} 1-0


[Site "https://www.chess.com"]

[Event "Titled Tuesday Blitz April 18 Late 2023"]
[White "Sailer, Mike"]
[Black "Korchmar, Vasiliy"]
[WhiteFideId "2012901"]
[BlackFideId "24131750"]
[WhiteElo "2109"]
[BlackElo "2370"]
[Result "0-1"]
[Round "02"]
[TimeControl "180+2"]
[Date "2023.04.18"]
[WhiteClock "0:00:48"]
[BlackClock "0:01:29"]

1. d4 {[%clk 0:03:00]}  d5 {[%clk 0:03:00]} 2. Bg5 {[%clk 0:02:59]}  Nf6 {[%clk 0:02:59]} 3. Bxf6 {[%clk 0:02:59]}  gxf6 {[%clk 0:02:59]} 4. Nc3 {[%clk 0:02:43]}  c5 {[%clk 0:02:54]} 5. Nf3 {[%clk 0:02:37]}  cxd4 {[%clk 0:02:51]} 6. Qxd4 {[%clk 0:02:38]}  e6 {[%clk 0:02:49]} 7. O-O-O {[%clk 0:02:33]}  Nc6 {[%clk 0:02:49]} 8. Qh4 {[%clk 0:02:32]}  Be7 {[%clk 0:02:43]} 9. e4 {[%clk 0:02:31]}  f5 {[%clk 0:02:40]} 10. Qh5 {[%clk 0:02:19]}  fxe4 {[%clk 0:02:39]} 11. Nxe4 {[%clk 0:02:17]}  Qc7 {[%clk 0:02:14]} 12. Nc3 {[%clk 0:02:02]}  Bd7 {[%clk 0:02:13]} 13. Kb1 {[%clk 0:01:51]}  Qf4 {[%clk 0:02:11]} 14. g3 {[%clk 0:01:42]}  Qf6 {[%clk 0:02:10]} 15. Bb5 {[%clk 0:01:23]}  O-O-O {[%clk 0:02:09]} 16. Bxc6 {[%clk 0:01:22]}  Bxc6 {[%clk 0:02:09]} 17. Ne5 {[%clk 0:01:19]}  Be8 {[%clk 0:02:09]} 18. f4 {[%clk 0:01:16]}  Bb4 {[%clk 0:02:02]} 19. Nb5 {[%clk 0:01:11]}  Bxb5 {[%clk 0:02:01]} 20. Qxf7 {[%clk 0:01:10]}  Rdf8 {[%clk 0:01:40]} 21. Qh5 {[%clk 0:01:04]}  Bd6 {[%clk 0:01:37]} 22. Rhe1 {[%clk 0:00:55]}  Bxe5 {[%clk 0:01:37]} 23. Rxe5 {[%clk 0:00:55]}  Kb8 {[%clk 0:01:32]} 24. Rde1 {[%clk 0:00:54]}  Bd7 {[%clk 0:01:32]} 25. Qe2 {[%clk 0:00:52]}  Rc8 {[%clk 0:01:31]} 26. c3 {[%clk 0:00:52]}  h5 {[%clk 0:01:29]} 27. Rxh5 {[%clk 0:00:50]}  Qg6+ {[%clk 0:01:29]} 28. f5 {[%clk 0:00:48]}  Qxh5 {[%clk 0:01:29]} 0-1


[Site "https://www.chess.com"]

[Event "Titled Tuesday Blitz April 18 Late 2023"]
[White "Bilych, Olexiy"]
[Black "mestrefeitosa19"]
[WhiteFideId "14156504"]
[WhiteElo "2320"]
[BlackElo "2200"]
[Result "1-0"]
[Round "02"]
[TimeControl "180+2"]
[Date "2023.04.18"]
[WhiteClock "0:01:51"]
[BlackClock "0:01:40"]

1. d4 {[%clk 0:02:58]}  d5 {[%clk 0:02:59]} 2. c4 {[%clk 0:02:58]}  e6 {[%clk 0:03:00]} 3. Nf3 {[%clk 0:02:58]}  Nf6 {[%clk 0:03:00]} 4. Nc3 {[%clk 0:02:57]}  Be7 {[%clk 0:03:00]} 5. Bg5 {[%clk 0:02:57]}  O-O {[%clk 0:03:01]} 6. e3 {[%clk 0:02:56]}  b6 {[%clk 0:03:00]} 7. Qc2 {[%clk 0:02:48]}  Bb7 {[%clk 0:03:00]} 8. cxd5 {[%clk 0:02:47]}  Nxd5 {[%clk 0:02:59]} 9. Bxe7 {[%clk 0:02:39]}  Qxe7 {[%clk 0:02:58]} 10. Nxd5 {[%clk 0:02:34]}  Bxd5 {[%clk 0:02:56]} 11. Bd3 {[%clk 0:02:34]}  h6 {[%clk 0:02:55]} 12. O-O {[%clk 0:02:23]}  Rc8 {[%clk 0:02:51]} 13. Ne5 {[%clk 0:01:54]}  c5 {[%clk 0:02:32]} 14. Bh7+ {[%clk 0:01:53]}  Kh8 {[%clk 0:02:20]} 15. Bg6 {[%clk 0:01:52]}  Rf8 {[%clk 0:01:46]} 16. Bxf7 {[%clk 0:01:51]}  Qg5 {[%clk 0:01:40]} 17. Ng6+ {[%clk 0:01:51]} 1-0


[Site "https://www.chess.com"]

[Event "Titled Tuesday Blitz April 18 Late 2023"]
[White "Dias, Joao Batista"]
[Black "Mihajlov, Sebastian"]
[WhiteFideId "2108240"]
[BlackFideId "1512110"]
[WhiteElo "1907"]
[BlackElo "2478"]
[Result "0-1"]
[Round "02"]
[TimeControl "180+2"]
[Date "2023.04.18"]
[WhiteClock "0:00:09"]
[BlackClock "0:00:49"]

1. e4 {[%clk 0:01:10]}  g6 {[%clk 0:03:00]} 2. d4 {[%clk 0:01:09]}  Bg7 {[%clk 0:03:01]} 3. Be3 {[%clk 0:01:08]}  d6 {[%clk 0:03:02]} 4. Qd2 {[%clk 0:01:08]}  a6 {[%clk 0:03:03]} 5. c4 {[%clk 0:01:08]}  Nc6 {[%clk 0:03:00]} 6. Nf3 {[%clk 0:01:07]}  Bg4 {[%clk 0:02:58]} 7. Nc3 {[%clk 0:01:03]}  Bxf3 {[%clk 0:02:58]} 8. gxf3 {[%clk 0:01:02]}  e5 {[%clk 0:02:59]} 9. d5 {[%clk 0:01:02]}  Nce7 {[%clk 0:02:59]} 10. h4 {[%clk 0:01:02]}  Nf6 {[%clk 0:02:58]} 11. O-O-O {[%clk 0:00:58]}  h6 {[%clk 0:02:52]} 12. Kb1 {[%clk 0:00:58]}  Nh5 {[%clk 0:02:48]} 13. Ne2 {[%clk 0:00:51]}  Qd7 {[%clk 0:02:41]} 14. b3 {[%clk 0:00:49]}  a5 {[%clk 0:02:32]} 15. Bh3 {[%clk 0:00:46]}  f5 {[%clk 0:02:32]} 16. Rhg1 {[%clk 0:00:43]}  Kf7 {[%clk 0:02:04]} 17. Qc2 {[%clk 0:00:42]}  Bf6 {[%clk 0:01:43]} 18. exf5 {[%clk 0:00:36]}  Nxf5 {[%clk 0:01:37]} 19. Ng3 {[%clk 0:00:35]}  Nhxg3 {[%clk 0:01:31]} 20. fxg3 {[%clk 0:00:35]}  a4 {[%clk 0:01:16]} 21. Bc1 {[%clk 0:00:34]}  axb3 {[%clk 0:01:16]} 22. axb3 {[%clk 0:00:34]}  b5 {[%clk 0:01:08]} 23. Bb2 {[%clk 0:00:33]}  bxc4 {[%clk 0:01:08]} 24. Qxc4 {[%clk 0:00:33]}  Rhb8 {[%clk 0:01:02]} 25. g4 {[%clk 0:00:33]}  Ne3 {[%clk 0:01:02]} 26. Qd3 {[%clk 0:00:26]}  Nxd1 {[%clk 0:01:02]} 27. Qxd1 {[%clk 0:00:22]}  Qb5 {[%clk 0:00:59]} 28. g5 {[%clk 0:00:22]}  hxg5 {[%clk 0:00:59]} 29. hxg5 {[%clk 0:00:21]}  Bg7 {[%clk 0:00:57]} 30. Be6+ {[%clk 0:00:21]}  Ke7 {[%clk 0:00:57]} 31. f4 {[%clk 0:00:20]}  Qxb3 {[%clk 0:00:56]} 32. Qxb3 {[%clk 0:00:19]}  Rxb3 {[%clk 0:00:57]} 33. Kc2 {[%clk 0:00:19]}  Rf3 {[%clk 0:00:54]} 34. Rh1 {[%clk 0:00:19]}  Rf2+ {[%clk 0:00:53]} 35. Kc1 {[%clk 0:00:15]}  Rxf4 {[%clk 0:00:50]} 36. Rh7 {[%clk 0:00:15]}  Kf8 {[%clk 0:00:50]} 37. Rh1 {[%clk 0:00:13]}  e4 {[%clk 0:00:48]} 38. Bxg7+ {[%clk 0:00:12]}  Kxg7 {[%clk 0:00:49]} 39. Kb1 {[%clk 0:00:10]}  e3 {[%clk 0:00:48]} 40. Re1 {[%clk 0:00:09]}  Rb4+ {[%clk 0:00:49]} 0-1


[Site "https://www.chess.com"]

[Event "Titled Tuesday Blitz April 18 Late 2023"]
[White "Aung Thant Zin"]
[Black "Amburgy, Ryan"]
[WhiteFideId "13000063"]
[BlackFideId "30924820"]
[WhiteElo "2278"]
[BlackElo "2134"]
[Result "0-1"]
[Round "02"]
[TimeControl "180+2"]
[Date "2023.04.18"]
[WhiteClock "0:01:58"]
[BlackClock "0:02:18"]

1. e4 {[%clk 0:02:58]}  e5 {[%clk 0:02:59]} 2. Nf3 {[%clk 0:02:57]}  Nc6 {[%clk 0:03:00]} 3. d4 {[%clk 0:02:56]}  exd4 {[%clk 0:02:59]} 4. Nxd4 {[%clk 0:02:53]}  Nf6 {[%clk 0:02:59]} 5. Nc3 {[%clk 0:02:52]}  Nxe4 {[%clk 0:02:58]} 6. Nxe4 {[%clk 0:02:50]}  Qe7 {[%clk 0:02:59]} 7. f3 {[%clk 0:02:39]}  d5 {[%clk 0:02:58]} 8. Nxc6 {[%clk 0:02:38]}  bxc6 {[%clk 0:02:58]} 9. Bd3 {[%clk 0:02:32]}  dxe4 {[%clk 0:02:55]} 10. fxe4 {[%clk 0:02:32]}  Be6 {[%clk 0:02:43]} 11. O-O {[%clk 0:02:29]}  Qc5+ {[%clk 0:02:42]} 12. Kh1 {[%clk 0:02:29]}  Bd6 {[%clk 0:02:40]} 13. Qf3 {[%clk 0:02:20]}  O-O {[%clk 0:02:31]} 14. Be3 {[%clk 0:02:19]}  Qe5 {[%clk 0:02:32]} 15. Bf4 {[%clk 0:02:13]}  Qxf4 {[%clk 0:02:31]} 16. Qxf4 {[%clk 0:02:13]}  Bxf4 {[%clk 0:02:32]} 17. Rxf4 {[%clk 0:02:13]}  Rfd8 {[%clk 0:02:30]} 18. Raf1 {[%clk 0:02:05]}  Kf8 {[%clk 0:02:28]} 19. b3 {[%clk 0:02:04]}  Ke7 {[%clk 0:02:23]} 20. h3 {[%clk 0:02:03]}  Rd4 {[%clk 0:02:21]} 21. Rg4 {[%clk 0:01:58]}  Bxg4 {[%clk 0:02:18]} 0-1


[Site "https://www.chess.com"]